Cogmind - Beta 15 @@@ ROGUE MODE // 2025.05.23 @ 00:28:24 Player: Trione Result: Destroyed by QF-PN3(R) with Subdweller Shrapnel Launcher Performance ------------- Evolutions (0) 0 Regions Visited (2) 400 Robots Destroyed (47) 235 Value Destroyed (1204) 1204 Prototype IDs (11) 220 Alien Tech Used (0) 0 Bonus (0) 0 TOTAL SCORE: 2059 Bonus ------- None Cogmind --------- Core Integrity 0/250 Matter 10/300 Energy 98/100 System Corruption 0% Temperature Cool (1) Movement Core (50) Location -10/Subcaves Parts ------- > --- POWER (1) -------- (None) > --- PROPULSION (2) --- (None) > --- UTILITY (2) ------ (None) > --- WEAPON (2) ------- (None) > --- INVENTORY (5) ---- Ion Engine High-capacity Matter Pod (0) Scrap Shield Subdweller Shrapnel Launcher Peak State ------------ > --- POWER ------------ Ion Engine > --- PROPULSION ------- Light Treads Light Treads > --- UTILITY ---------- Scrap Shield > --- WEAPON ----------- Subdweller Beam Cannon Barrage Gun > --- INVENTORY -------- Ion Engine High-capacity Matter Pod Beam Cannon Light Cannon Grenade Launcher [Rating: 12] Favorites ----------- Power Ion Engine Engine Ion Engine Propulsion Light Treads Treads Light Treads Wheel Wheel Utility Scrap Shield Device Seismic Detector Storage Small Storage Unit Protection Scrap Shield Weapon Beam Cannon Energy Cannon Beam Cannon Ballistic Gun Barrage Gun Ballistic Cannon Light Cannon Launcher Grenade Launcher Special Weapon Mining Laser Build | -11 -10 -10 ------- Run | Yrd Mat Sub Slots Evolved . | . . . Power . | . . . Propulsion . | . . . Utility . | . . . Weapon . | . . . Parts Attached 28 | 7 11 10 Power 3 | 1 2 . Engine 3 | 1 2 . Core . | . . . Reactor . | . . . Propulsion 6 | 2 2 2 Treads 3 | . 2 1 Leg . | . . . Wheel 3 | 2 . 1 Hover . | . . . Flight . | . . . Utility 8 | 2 2 4 Device 1 | 1 . . Storage 4 | 1 2 1 Processor . | . . . Hackware . | . . . Protection 3 | . . 3 Artifact . | . . . Weapon 11 | 2 5 4 Energy Gun . | . . . Energy Cannon 4 | . 2 2 Ballistic Gun 3 | 2 . 1 Ballistic Cannon 1 | . 1 . Launcher 2 | . 1 1 Special Weapon 1 | . 1 . Impact Weapon . | . . . Slashing Weapon . | . . . Piercing Weapon . | . . . Special Melee Weapon . | . . . Unidentified Prototypes . | . . . Parts Lost 11 | . 1 10 Power 1 | . . 1 Propulsion 5 | . 1 4 Utility 2 | . . 2 Weapon 3 | . . 3 Highest Loss Streak 4 | . 1 4 To Critical Strikes . | . . . Average Backups 6 | 4 10 5 Power . | . 1 1 Propulsion . | 2 1 . Utility 1 | . 2 1 Weapon 2 | . 4 2 Tool/Special . | . . . Unused Backups 15 | . 4 11 Power 1 | . . 1 Propulsion 5 | . 2 3 Utility 3 | . 1 2 Weapon 5 | . 1 4 Tool/Special 1 | . . 1 Average Slot Usage (%) 85 | . 99 81 Engine 13 | . 14 13 Treads 19 | . 13 21 Wheel 7 | . 14 5 Device 3 | . 14 . Storage 3 | . 14 . Protection 9 | . . 12 Energy Cannon 14 | . 16 13 Ballistic Gun 10 | . 8 11 Peak Build Rating 12 | 7 8 12 Average Rating 9 | 5 7 10 On Entrance 5 | . 7 8 Naked Turns . | . . . Heaviest Build 39 | 12 32 39 Greatest Support 40 | 26 26 40 Greatest Overweight (x) 3 | . 3 3 Average Overweight (x) 1 | . 1 1 Largest Inventory Capacity 15 | 8 15 15 Average Capacity 6 | 7 10 5 Most Carried 15 | 7 15 15 Average Carried 6 | 4 10 5 Final Capacity 15 | 8 15 5 Final Carried 15 | 7 15 5 Class Distribution -------------------- 97% | Mutant Dominant Class ---------------- Mutant | -10/Materials Mutant | -10/Subcaves Resources | -11 -10 -10 ----------- Run | Yrd Mat Sub Matter Collected 1711 | 304 531 876 Remotely . | . . . Salvage Created 1438 | 117 475 846 Parts 81 | 6 34 41 Haulers Intercepted 2 | . 2 . Recyclers Shooed . | . . . Parts Field Recycled . | . . . Retrieved Matter . | . . . Parts Self-Destructed 6 | . . 6 Prevented . | . . . Kills | -11 -10 -10 ------- Run | Yrd Mat Sub Combat Hostiles Destroyed 33 | . 9 24 Guns 2 | . . 2 Cannons 15 | . 4 11 AOE 16 | . 5 11 Classes Destroyed 11 | 2 6 3 Worker 1 | . 1 . Tunneler 4 | 2 2 . Hauler 2 | . 2 . Recycler 3 | 1 2 . Operator 1 | . 1 . Turret 2 | . . 2 Watcher 1 | . 1 . Swarmer 9 | . 6 3 Grunt 5 | . 3 2 Sentry 1 | . . 1 Subdweller 18 | . . 18 Best Kill Streak 6 | 2 6 6 Combat Bots Only 5 | . 5 4 Max Kills in Single Turn 3 | 1 2 3 Gunslinging . | . . . Exploded 3 | . 2 3 Melee . | . . . Uniques/NPCs Destroyed . | . . . Combat | -11 -10 -10 -------- Run | Yrd Mat Sub Hostile Shots Fired 152 | . 24 128 Missed 48 | . 5 43 Hits 104 | . 19 85 Projectile 104 | . 19 85 AOE 2 | . . 2 Critical Strikes 4 | . . 4 Damage Taken 2126 | . 196 1930 Core 266 | . 26 240 Absorbed by Shields . | . . . Core Remaining (%) 100 | 100 . . Volleys Fired 170 | 11 42 117 Largest 2 | 2 2 2 Hottest 120 | 40 120 120 Shots Fired 263 | 22 68 173 Gun 81 | 22 20 39 Cannon 124 | . 31 93 Launcher 53 | . 12 41 Special 5 | . 5 . Kinetic 108 | 22 20 66 Thermal 129 | . 36 93 Explosive 26 | . 12 14 Electromagnetic . | . . . Robot Hit Streak 14 | 4 8 14 Robot Miss Streak 3 | 1 2 3 Penetration Max . | . . . Secondary Targets . | . . . Shots Hit Robots 136 | 15 34 87 Core Hits 74 | 4 23 47 Critical Kills 2 | . 1 1 Critical Parts Destroyed . | . . . Critical Strikes 2 | . 1 1 Meltdown 2 | . 1 1 Melee Attacks . | . . . Impact . | . . . Slashing . | . . . Piercing . | . . . Sneak Attacks . | . . . Combat Hostiles . | . . . Follow-up Attacks . | . . . Damage Inflicted 4316 | 154 843 3319 Guns 714 | 154 154 406 Cannons 1391 | . 368 1023 Explosions 2211 | . 321 1890 Melee . | . . . Ramming . | . . . Kinetic 2335 | 154 154 2027 Thermal 1391 | . 368 1023 Explosive 590 | . 321 269 Electromagnetic . | . . . Impact . | . . . Slashing . | . . . Piercing . | . . . Highest Corruption . | . . . Average Corruption . | . . . Corruption Purged . | . . . Corruption Blocked . | . . . Overload Shots . | . . . Overflow Damage 28 | . . 28 Projectiles . | . . . Explosions 28 | . . 28 Melee . | . . . Knockbacks . | . . . Impact . | . . . Kinetic . | . . . Secondary . | . . . Self-Inflicted Damage 47 | . . 47 Shots 2 | . . 2 Rammed . | . . . Targets Rammed . | . . . Kicked . | . . . Crushed . | . . . Highest Temperature 120 | . 120 27 Average Temperature 28 | . 35 11 Received Heat Transfer 384 | . 21 363 Siege Activations . | . . . Martial Activations . | . . . Shielding Activations . | . . . Robots Disrupted . | . . . Combat Hostiles . | . . . Robots Corrupted . | . . . Combat Hostiles . | . . . Parts Fried . | . . . Impact Corruptions . | . . . Robots Melted 2 | . 1 1 Combat Hostiles 1 | . . 1 Parts Melted 11 | . 3 8 Heat Transferred 2664 | . 777 1887 Parts Sabotaged . | . . . Parts Stolen . | . . . Parts Stripped . | . . . Power Chain Reactions . | . . . Alert | -11 -10 -10 ------- Run | Yrd Mat Sub Maximum Alert Level . | . . . Low Security (%) 100 | 100 100 . Level 1 . | . . . Level 2 . | . . . Level 3 . | . . . Level 4 . | . . . Level 5 . | . . . High Security . | . . . Max Security . | . . . Peak Influence 140 | 5 140 . Initial . | . . . Average 46 | 1 51 . Influence Increases 561 | 15 361 185 Destroy 0b10 Robot/C 340 | . 180 160 Destroy 0b10 Robot/NC 60 | 15 45 . Destroy Leader 56 | . 46 10 Successful Hack 14 | . 14 . Disable Machine 15 | . 15 . Destroy Structure 61 | . 61 . Lose Combat Pursuer 15 | . . 15 Influence Decreases 561 | 15 361 185 Time Decay 491 | 15 361 115 Lost Part 70 | . . 70 Squads Dispatched 1 | . 1 . Investigation . | . . . Extermination . | . . . Reinforcement 1 | . 1 . Assault . | . . . Garrison . | . . . Intercept . | . . . Searches Triggered . | . . . Construction Impeded . | . . . Haulers Reinforced . | . . . Active Scanning Responses . | . . . Cargo Convoy Interrupts . | . . . Stealth | -11 -10 -10 --------- Run | Yrd Mat Sub Distress Signals . | . . . Communications Jammed . | . . . Distress Signals . | . . . Times Spotted 48 | . 19 29 Peak Tracking Total 6 | . 5 6 Tactical Retreats 2 | . . 2 Traps | -11 -10 -10 ------- Run | Yrd Mat Sub Traps Triggered 5 | . 1 4 Indirectly . | . . . Trap Hack Attempts . | . . . Triggered . | . . . Disarmed . | . . . Reprogrammed . | . . . Reused . | . . . Traps Extracted . | . . . Installed 2 | . . 2 Triggered . | . . . Machines | -11 -10 -10 ---------- Run | Yrd Mat Sub Machines Disabled 6 | . 2 4 Max in Single Turn 4 | . 1 4 Machines Repaired . | . . . Machines Dismantled . | . . . Machines Sabotaged . | . . . Overloaded Fab Kills . | . . . Hacking | -11 -10 -10 --------- Run | Yrd Mat Sub Machines Accessed 11 | . 8 3 Terminals 7 | . 7 . Fabricators . | . . . Repair Stations . | . . . Recycling Units 1 | . 1 . Scanalyzers . | . . . Garrison Access . | . . . Total Hacks 23 | . 20 3 Successful 9 | . 6 3 Failed 14 | . 14 . Catastrophic 1 | . 1 . Database Lockouts . | . . . Manual 15 | . 15 . Terminals 19 | . 19 . Fabricators . | . . . Repair Stations . | . . . Recycling Units 1 | . 1 . Scanalyzers . | . . . Garrison Access . | . . . Terminal Hacks 5 | . 2 3 Record 1 | . . 1 Robot Analysis 1 | . 1 . Open Door 1 | . . 1 Locate Traps 1 | . 1 . Proto ID Catalog 1 | . . 1 Fabricator Hacks . | . . . Repair Station Hacks . | . . . Recycling Unit Hacks 1 | . 1 . Retrieve Components 1 | . 1 . Scanalyzer . | . . . Garrison Access Hacks . | . . . Unauthorized Hacks 3 | . 3 . Terminals 3 | . 3 . Botnet 3 | . 3 . Fabricators . | . . . Repair Stations . | . . . Recycling Units . | . . . Scanalyzers . | . . . Garrison Access . | . . . Data Cores Recovered . | . . . Used . | . . . Hacking Detections 7 | . 7 . Full Trace Events . | . . . Feedback Events . | . . . Feedback Blocked . | . . . Robot Schematics Acquired . | . . . Robots Built . | . . . Authchips . | . . . Time . | . . . Total Robot Build Rating . | . . . Part Schematics Acquired . | . . . Parts Built . | . . . Authchips . | . . . Time . | . . . Total Part Build Rating . | . . . Parts Repaired . | . . . Time . | . . . Parts Recycled . | . . . Recycled Matter . | . . . Retrieved Matter . | . . . Retrieved Components 1 | . 1 . Parts Scanalyzed . | . . . Part Schematics Acquired . | . . . Parts Damaged . | . . . Bothacking | -11 -10 -10 ------------ Run | Yrd Mat Sub Used RIF Installer . | . . . Robots Hacked . | . . . Non-combat . | . . . Combat . | . . . Robot Hacks Applied . | . . . Relay Couplers Released . | . . . Fabnet Peak Effective % . | . . . Robots Rewired . | . . . Allies Hacked . | . . . Hacks Repelled . | . . . Allies | -11 -10 -10 -------- Run | Yrd Mat Sub Total Allies . | . . . Largest Group . | . . . Highest-Rated Group . | . . . Highest-Rated Ally . | . . . Total Orders . | . . . Ally Attacks . | . . . Total Damage . | . . . Kills . | . . . Allies Corrupted . | . . . Allies Melted . | . . . Intel | -11 -10 -10 ------- Run | Yrd Mat Sub Active Infowar (turns) 1483 | 38 1167 278 Seismic 1483 | 38 1167 278 Robot Analysis Total 1 | . 1 . Derelict Logs Recovered 2 | . . 2 Drone Launches . | . . . Drone Recoveries . | . . . Exploration | -11 -10 -10 ------------- Run | Yrd Mat Sub Turns Passed 5693 | 128 1167 4398 Spaces Moved 3769 | 89 902 2778 Core 157 | 1 . 156 Treads 1496 | . 71 1425 Legs . | . . . Wheels 2116 | 88 831 1197 Hover . | . . . Flight . | . . . Fastest Speed 50 | 50 90 100 Average Speed 134 | 89 110 143 Slowest Speed 240 | 90 160 240 Overloaded Moves . | . . . Propulsion Burnouts . | . . . Robots Hopped . | . . . Potential Cave-ins 5 | . . 5 Cave-ins Triggered . | . . . Exploration Rate (%) 61 | 5 96 84 Regions Visited 2 Branch Regions 1 Pre-discovered Areas 1 | . . 1 Known Exits Taken . | . . . Unknown Exits Taken 2 | 1 1 . Scrap Searched 10 | . . 10 Spaces Dug 28 | . 16 12 Terrain Destroyed 443 | . 53 390 Melee . | . . . Projectile 13 | . 5 8 AOE 430 | . 48 382 Terrain Rammed . | . . . Walls Destroyed . | . . . Machines Disabled . | . . . Actions | -11 -10 -10 --------- Run | Yrd Mat Sub Total 4127 | 113 993 3021 Wait 39 | . 7 32 Move 3767 | 88 901 2778 Hop . | . . . Pick Up 34 | 7 15 12 Fast Attach 12 | 7 1 4 Attach 6 | . 1 5 Detach 2 | . . 2 Swap 42 | . 15 27 Drop 35 | . 11 24 Fire 170 | 11 42 117 Melee . | . . . Ram . | . . . Kick . | . . . Crush . | . . . Escape Stasis . | . . . Rewire . | . . . Trap 2 | . . 2 Miscellaneous 18 | . . 18 Route ------- -11/Scrapyard -10/Materials (discovered 5 exits: [*Mat x3] / [*Min] / *Sub) -10/Subcaves (discovered 4 exits: [*Mat x2] / *Rec / [*Scr]) History --------- Turn | Location | Event 24 | -11/Scrapyard | Discovered new exit (range 16) 129 | -11/Scrapyard | Entered Materials 300 | -10/Materials | Build established: Mutant 369 | -10/Materials | Discovered new exit (range 8) 555 | -10/Materials | Discovered new exit (range 10) 605 | -10/Materials | Discovered new exit (range 12) 694 | -10/Materials | Discovered new exit (range 11) 853 | -10/Materials | Discovered new exit (range 8) 1296 | -10/Materials | Entered Subcaves 1297 | -10/Subcaves | Approached by a straggling Scientist 1314 | -10/Subcaves | Learned location of Zion (-7) 1314 | -10/Subcaves | Met a Zionite searching for "candidates" 1399 | -10/Subcaves | Scientist uncovered a shortcut to Scraptown 1458 | -10/Subcaves | Learned Materials interactive machine intel 1569 | -10/Subcaves | Discovered new exit (range 7) 1609 | -10/Subcaves | Disturbed a concealed Subdweller 1705 | -10/Subcaves | Disturbed a concealed Subdweller 1843 | -10/Subcaves | Discovered new exit (range 15) 2663 | -10/Subcaves | Visited 4L-MR0's lab 2850 | -10/Subcaves | Identified exit to Recycling 3150 | -10/Subcaves | A swath of the cavern ceiling suddenly collapsed 4787 | -10/Subcaves | Shifting Twisted Machinery released Sub. Power Source 4827 | -10/Subcaves | Shifting Twisted Machinery released Battle Rifle 5149 | -10/Subcaves | Shifting Twisted Machinery released Piercing Trap 5197 | -10/Subcaves | Shifting Twisted Machinery released Multitool 5297 | -10/Subcaves | Core integrity fell below 50% 5299 | -10/Subcaves | Ambushed by Subdweller buried in earth 5303 | -10/Subcaves | Ambushed by Subdweller buried in earth 5307 | -10/Subcaves | Ambushed by Subdweller buried in earth 5307 | -10/Subcaves | Ambushed by Subdweller buried in earth 5341 | -10/Subcaves | Lost 4 parts (1n2u1w) 5346 | -10/Subcaves | Core integrity fell below 20% 5694 | -10/Subcaves | Destroyed by QF-PN3(R) with Subdweller Shrapnel Launcher Last Messages --------------- 05304_ H8-FR1(R): "HIDIE!" 05307_ H8-FR1(R) destroyed. 05308_ 1I-K9C(R): "THANKSYOU!" 05308_ DN-FBQ(R): "HIDIE!" 05310_ Scrap Shield destroyed. 05312_ DN-FBQ(R) destroyed. 05314_ 1I-K9C(R) destroyed. 05320_ The unstable cave ceiling collapses. 05320_ Acquired Sub. Monowheel. 05326_ 4S-U64(R) affixes Scrap Shield Fragment to Scrap Shield. 05343_ Sub. Shrapnel Launcher destroyed. 05349_ Grenade Launcher destroyed. 05360_ QF-A9K(u) builds Twisted Machinery. 05383_ Dropped Broken Sub. Beam Cannon. 05506_ Acquired Scrap Shield. 05679_ QF-PN3(R): "SUBHATE!" 05679_ Ion Engine destroyed. 05680_ Dropped Sub. Monowheel. 05694_ Lgt. Treads destroyed. Map ----- +----------------------------------------------------+ | #?????????????????????????????????# | | #????????????????????????????????## | | #????????????????????????????????#"" # | | ##?????????????????????????????####" | | ## #?????????????????????????????#""" "### # | | ## ##????????????????????????????##"" "###?### | | # #????????????????????????????## "####? | | #????????????????????????????# ###""""" #? | | #????????????????????????????## ####] """"## | | #### ##??????????????????????????##"" [%&* """# | | ???# #??????????????????????????# "" && #### | | #### ##??????????????????????????#" # # ### #??? | | #????????????????###????????### ! ##?####??? | | ##????????????????# #????##???###% #????###?? | | ##??##?????????##### ##### #???# !###?## ##? | | [ ##### ?????????# ## | #????# "### ## | | "# ### ##???????# ![ ##???# ### # | | ##### ???????# ##### ## # | | ????? ##?????# ## ## % # | | ?????? #?????# | | ???????? ##????# # | | #???????? ####### # ## % ## | | #?????????# #""""";; # # ## | | #####?????# "" "; ;;#" ;## ## # | | ## ##????# ## #;; ; # #### # | | #???## & @ ;;; # #?## # | | #??## & = ## #; ; # #### # | | #### ##### ## ## | | % ## ;;; #???# # ##? | | [! R;### #???#" "# #?? | | ] #;; ##?#####???#" ## #?? | | ### #### #??????????#" = "#### ##? | | ##?## #??# #??????????#" #??# ## | | ###?######??# #####??????#" #??## # | | ####??????## """ # ##???#" ##???# ## | | #???????#"" """ #?#" "#???# # | | ## #??????#"" ### > ""#???## ## | | ##? ???# " """####### ####???## ## | | ##?? ? #?????###??????# # | | #???## ?? #?????########### ## | | ##?????? #?? % ???###"# # # # | | ##????????##???"" """ ???#"* | | #?????????????### #"" ???##" ##"####""# | | #????????????????" #" "#?????# ####??#### | | ???????????????""" ? % "#?????#" ##?????## | | ?????????????# " ? ""##????# ##???## | | ????????????? ? " # ??## ##### | | ???????????? ? ?? ?## ??#" "## # | | #??????????????" ???# ###" ""#### | | ??????????????????????# """ ""#?? | +----------------------------------------------------+ Best States ------------- Heat Dissipation 25 Energy Generation 10 Energy Capacity 250 Matter Stores 352 Matter Capacity 500 Sight Range 16 Terrain Scan Density 10 Armor Coverage 800 Evasion (%) 42 Recoil Reduction 2 Item Schematics ----------------- None Robot Schematics ------------------ None Fabricated ------------ Nothing Repaired ---------- Nothing Alien Tech Used ----------------- None Achievements -------------- None Challenges ------------ None Game ------ Seed SpectralScanScythe Manual? 0 Play Time 00:54:13 Cumulative 1356.1 hours Start 2025.05.22 @ 22:38:35 End 2025.05.23 @ 00:28:24 Sessions 1 Manual Loads 0 Difficulty Rogue Special Mode None Game No. 491 Rogue 491 Adventurer 0 Explorer 0 Win Type - Total 32 Types 16/2/8/0/0/0/6/0/0/0 Lore% 83 Gallery% 83 Achievement% 85 Wizard Run 0 Options --------- Layout 1 ASCII 0 Keyboard 0 Movement Vi Keybinds 0 Fullscreen 0 Font 14/CherryShadow Map View 64x42 Zoom Use 0% Tactical HUD 1 Map Filters NONE Filters NONE Steam 1 RUN: 32651b4f-f20d-4db9-a652-a9de2806a163